fUST/lending_fUST_20251121
["ID","MTS","AMOUNT","RATE_DAILY","PERIOD"]
[394564553,1763716238266,-787.41678893,8.869e-05,2]
[394564554,1763716238276,-787.41678893,8.869e-05,2]
[394564555,1763716238287,-787.41678893,8.869e-05,2]
[394564556,1763716238296,-787.41678893,8.869e-05,2]
[394564557,1763716238306,-787.41678893,8.869e-05,2]
[394564558,1763716238316,-787.41678893,8.869e-05,2]
[394564559,1763716238327,-787.41678893,8.869e-05,2]
[394564560,1763716238337,-787.41678893,8.869e-05,2]
[394564561,1763716238347,-787.41678893,8.869e-05,2]
[394564562,1763716238357,-787.41678893,8.869e-05,2]
[394564563,1763716238367,-787.41678893,8.869e-05,2]
[394564564,1763716238377,-787.41678893,8.869e-05,2]
[394564565,1763716238386,-787.41678893,8.869e-05,2]
[394564566,1763716238396,-787.41678893,8.869e-05,2]
[394564567,1763716238405,-787.41678893,8.869e-05,2]
[394564568,1763716238415,-787.41678893,8.869e-05,2]
[394564569,1763716238425,-787.41678893,8.869e-05,2]
[394564570,1763716238435,-787.41678893,8.869e-05,2]
[394564571,1763716238445,-787.41678893,8.869e-05,2]
[394564572,1763716238457,-787.41678893,8.869e-05,2]
[394564573,1763716238467,-787.41678893,8.869e-05,2]
[394564574,1763716238477,-787.41678893,8.869e-05,2]
[394564575,1763716238487,-183.2345767,8.87e-05,2]
[394564576,1763716238496,-500.0,8.875e-05,2]
[394564577,1763716238506,-518.39835129,8.943e-05,2]
[394564578,1763716238516,-500.93977236,8.943e-05,2]
[394564579,1763716238526,-500.0,8.943e-05,2]
[394564580,1763716238535,-622.32639581,8.943e-05,2]
[394564581,1763716238545,-600.0,9.144e-05,2]
[394564582,1763716238554,-159.45,9.144e-05,2]
[394564583,1763716238564,-300.0,9.145e-05,2]
[394564584,1763716238573,-300.0,9.145e-05,2]
[394564585,1763716238583,-300.0,9.145e-05,2]
[394564586,1763716238592,-300.0,9.145e-05,2]
[394564587,1763716238602,-300.0,9.145e-05,2]
[394564588,1763716238611,-300.0,9.145e-05,2]
[394564589,1763716238621,-300.0,9.145e-05,2]
[394564590,1763716238632,-300.0,9.145e-05,2]
[394564591,1763716238641,-300.0,9.145e-05,2]
[394564592,1763716238651,-300.0,9.145e-05,2]
[394564593,1763716238660,-300.0,9.145e-05,2]
[394564594,1763716238670,-300.0,9.145e-05,2]
[394564595,1763716238679,-300.0,9.145e-05,2]
[394564596,1763716238688,-300.0,9.145e-05,2]
[394564597,1763716238698,-300.0,9.145e-05,2]
[394564598,1763716238707,-500.0,9.149e-05,2]
[394564599,1763716238717,-500.0,9.423e-05,2]
[394564600,1763716238726,-474.68806802,9.697e-05,2]
[394564601,1763716238735,-1680.0,9.755e-05,2]
[394564602,1763716238745,-1200.0,9.756e-05,2]
[394564603,1763716238754,-209.40437684,0.0001,2]
[394564604,1763716238764,-720.0,0.00010058,2]
[394564605,1763716238775,-456.799957,0.00010137,2]
[394564606,1763716238785,-309.18421114,0.00010203,2]
[394564607,1763716238795,-217.15233878,0.00010548,2]
[394564608,1763716238804,-309.18421114,0.00010649,2]
[394564609,1763716238814,-216.21680051,0.0001087,2]
[394564610,1763716238824,-500.0,0.00010958,2]
[394564611,1763716238834,-500.0,0.00010959,2]
[394564612,1763716238844,-500.0,0.00010959,2]
[394564613,1763716238853,-500.0,0.00010959,2]
[394564614,1763716238863,-500.0,0.00010959,2]
[394564615,1763716238872,-500.0,0.00010959,2]
[394564616,1763716238882,-500.0,0.00010959,2]
[394564617,1763716238892,-500.0,0.00010959,2]
[394564618,1763716238902,-254.12823956,0.00010959,2]
[394564619,1763716238913,-500.0,0.00010959,2]
[394564620,1763716238922,-500.0,0.00010959,2]
[394564621,1763716238932,-500.0,0.00010959,2]
[394564622,1763716238942,-500.0,0.00010959,2]
[394564623,1763716238955,-500.0,0.00010959,2]
[394564624,1763716238964,-500.0,0.00010959,2]
[394564625,1763716238975,-500.0,0.00010959,2]
[394564626,1763716238985,-500.0,0.00010959,2]
[394564627,1763716238995,-500.0,0.00010959,2]
[394564628,1763716239004,-500.0,0.00010959,2]
[394564629,1763716239014,-500.0,0.00010959,2]
[394564630,1763716239023,-500.0,0.00010959,2]
[394564631,1763716239032,-500.0,0.00010959,2]
[394564632,1763716239042,-327.88976769,0.00010959,2]
[394564633,1763716239051,-864.0,0.00011064,2]
[394564634,1763716239060,-309.18421114,0.00011096,2]
[394564635,1763716239070,-225.18697532,0.00011096,2]
[394564636,1763716239080,-309.18421114,0.00011542,2]
[394564637,1763716239090,-233.51889341,0.00011644,2]
[394564638,1763716239100,-309.49339535,0.00011989,2]
[394564639,1763716239110,-500.0,0.00012054,2]
[394564640,1763716239119,-1000.0,0.0001217,2]
[394564641,1763716239129,-242.15909246,0.00012192,2]
[394564642,1763716239138,-353.13058887,0.00012564,2]
[394564643,1763716239148,-251.11897888,0.0001274,2]
[394564644,1763716239158,-249.19902431,0.0001287,2]
[394564645,1763716239168,-5701.58336313,0.000129,2]
[394564646,1763716239177,-414.0,0.00012937,2]
[394564647,1763716239186,-5701.58336306,0.0001295,2]
[394564648,1763716239197,-500.0,0.0001315,2]
[394564649,1763716239207,-260.4103811,0.00013288,2]
[394564650,1763716239218,-456.799957,0.00013303,2]
[394564651,1763716239228,-1000.0,0.00013388,2]
[394564652,1763716239238,-244.0,0.00013388,2]
[394564653,1763716239254,-500.0,0.00013698,2]
[394564654,1763716239264,-500.0,0.00013698,2]
[394564655,1763716239274,-500.0,0.00013698,2]
[394564656,1763716239284,-500.0,0.00013698,2]
[394564657,1763716239295,-1385.443207,0.00013699,2]
[394564658,1763716239304,-1000.0,0.00013699,2]
[394564659,1763716239314,-675.362042,0.00013699,2]
[394564660,1763716239323,-300.0,0.00013699,2]
[394564661,1763716239334,-160.0,0.0001373,2]
[394564662,1763716239343,-270.0455652,0.00013836,2]
[394564663,1763716239352,-41776.1035608,0.00013957,2]
[394564664,1763716239360,-151.0,0.00013957,2]
[394564665,1763716239369,-476.496212,0.00013957,2]
[394564666,1763716239379,-476.496212,0.00013957,2]
[394564667,1763716239388,-476.496212,0.00013957,2]
[394564668,1763716239398,-476.496212,0.00013957,2]
[394564669,1763716239407,-456.799957,0.00014,3]
[394564670,1763716239416,-500.0,0.00014246,2]
[394564671,1763716239424,-260.0,0.00014278,2]
[394564673,1763716239434,-280.03725112,0.00014384,2]
[394564674,1763716239444,-273.37284923,0.00014604,2]
[394564675,1763716239456,-1000.0,0.00014726,2]
[394564676,1763716239465,-492.0,0.00014726,2]
[394564678,1763716239474,-360.0,0.00014826,2]
[394564679,1763716239484,-282.18124812,0.0001487,2]
[394564681,1763716239493,-290.39862941,0.00014932,2]
[394564682,1763716239503,-800.0,0.00015068,2]
[394564683,1763716239512,-151.0,0.00015174,2]
[394564685,1763716239522,-476.496212,0.0001532,2]
[394564686,1763716239531,-476.496212,0.0001532,2]
[394564687,1763716239541,-476.496212,0.0001532,2]
[394564688,1763716239550,-476.496212,0.0001532,2]
[394564689,1763716239560,-500.0,0.00015342,2]
[394564690,1763716239570,-460.0,0.00015374,2]
[394564691,1763716239580,-456.799957,0.00015566,3]
[394564692,1763716239589,-500.0,0.00015651,2]
[394564693,1763716239599,-500.0,0.00015681,2]
[394564694,1763716239609,-500.0,0.00015681,2]
[394564695,1763716239618,-500.0,0.00015681,2]
[394564696,1763716239628,-250.0,0.00015681,2]
[394564697,1763716239637,-250.0,0.00015681,2]
[394564698,1763716239646,-500.0,0.00015681,2]
[394564700,1763716239655,-250.0,0.00015681,2]
[394564702,1763716239665,-250.0,0.00015681,2]
[394564704,1763716239675,-500.0,0.00015681,2]
[394564706,1763716239684,-250.0,0.00015681,2]
[394564707,1763716239693,-250.0,0.00015681,2]
[394564709,1763716239705,-250.0,0.00015681,2]
[394564710,1763716239877,-250.0,0.00015681,2]
[394564711,1763716239899,-500.0,0.00015681,2]
[394564712,1763716239909,-250.0,0.00015681,2]
[394564713,1763716239919,-250.0,0.00015681,2]
[394564714,1763716239929,-500.0,0.00015681,2]
[394564715,1763716239939,-250.0,0.00015681,2]
[394564716,1763716239949,-250.0,0.00015681,2]
[394564717,1763716239959,-500.0,0.00015681,2]
[394564718,1763716239968,-250.0,0.00015681,2]
[394564719,1763716239977,-500.0,0.00015681,2]
[394564720,1763716239988,-500.0,0.00015681,2]
[394564721,1763716239997,-243.17747271,0.00015681,2]
[394564722,1763716240006,-166.60110672,0.00015801,2]
[394564723,1763716240016,-207.177,0.0001589,2]
[394564724,1763716240025,-560.0,0.00015922,2]
[394564725,1763716240035,-414.0,0.00015937,2]
[394564726,1763716240045,-500.0,0.00015989,2]
[394564728,1763716240054,-500.0,0.00015989,2]
[394564730,1763716240064,-500.0,0.00015989,2]
[394564732,1763716240073,-500.0,0.00015989,2]
[394564734,1763716240084,-500.0,0.00015989,2]
[394564736,1763716240094,-80049.05143219,0.0001599,2]
[394564799,1763716240729,-2e-08,0.0001548,2]
[394565082,1763716243915,-301.14337868,0.0001548,2]
[394565084,1763716243924,-8512.34794609,0.0001599,2]
[394565299,1763716246103,-11438.60062172,0.0001599,2]
[394565300,1763716246113,-800.0,0.00016164,2]
[394565301,1763716246122,-1000.0,0.00016199,2]
[394565302,1763716246132,-791.0,0.00016199,2]
[394565304,1763716246141,-2959.31633638,0.00016281,2]
[394565306,1763716246151,-220.03643772,0.00016337,2]
[394565307,1763716246161,-500.0,0.00016337,2]
[394565308,1763716246170,-500.0,0.00016338,2]
[394565309,1763716246180,-758.0,0.00016345,2]
[394565310,1763716246189,-2135.72534207,0.00016373,2]
[394565927,1763717025283,-300.0,8.422e-05,2]
[394565928,1763717025308,-164.61794371,8.673e-05,2]
[394565929,1763717025333,-500.0,8.753e-05,2]
[394565930,1763717025357,-300.0,8.764e-05,2]
[394565931,1763717025385,-500.0,8.765e-05,2]
[394565932,1763717025415,-500.0,8.765e-05,2]
[394565933,1763717025446,-500.0,8.765e-05,2]
[394565934,1763717025474,-211.92501896,8.765e-05,2]
[394565935,1763717025509,-500.0,8.765e-05,2]
[394565936,1763717025540,-500.0,8.765e-05,2]
[394565937,1763717025570,-500.0,8.765e-05,2]
[394565938,1763717025601,-500.0,8.765e-05,2]
[394565939,1763717025632,-500.0,8.765e-05,2]
[394565940,1763717025661,-500.0,8.765e-05,2]
[394565941,1763717025689,-500.38432204,8.765e-05,2]
[394565942,1763717025718,-500.0,8.765e-05,2]
[394565943,1763717025746,-500.0,8.765e-05,2]
[394565944,1763717025770,-1089.0,8.766e-05,2]
[394565945,1763717025795,-505.90282153,8.769e-05,2]
[394565946,1763717025823,-488544.95241644,8.77e-05,2]
[394565956,1763717233145,-300.0,7.999e-05,2]
[394565957,1763717233164,-238.4671817,8e-05,2]
[394565958,1763717243198,-920.42816125,7.92e-05,2]
[394565959,1763717243219,-407.54994176,8e-05,2]
[394565977,1763717370110,-426.43555459,7.92e-05,2]
[394565978,1763717370138,-611.15381356,7.999e-05,2]
[394565979,1763717370163,-7679.38350418,8e-05,2]
[394566002,1763717432033,-320.83338335,8e-05,2]
[394566009,1763717432091,-1389.63512518,8e-05,2]
[394566188,1763717444468,-14200.13086383,8e-05,2]
[394566189,1763717444482,-165.44144452,8.335e-05,2]
[394566190,1763717444491,-273.55503707,8.459e-05,2]
[394566191,1763717444501,-4690.08098511,8.67e-05,2]
[394566192,1763717444511,-209.40437684,0.0001,2]
[394566193,1763717444520,-383.711964,0.00010137,2]
[394566194,1763717444530,-195.22090453,0.00010335,2]
[394566195,1763717444540,-217.15233878,0.00010548,2]
[394566196,1763717444550,-403.57949791,0.00010958,2]
[394566197,1763717444559,-225.18697532,0.00011096,2]
[394566198,1763717444570,-356.330638,0.00011158,2]
[394566199,1763717444579,-233.51889341,0.00011644,2]
[394566200,1763717444588,-500.0,0.00011964,2]
[394566201,1763717444597,-354.13197507,0.00011964,2]
[394566202,1763717444607,-156.34641436,0.00011964,2]
[394566203,1763717444617,-500.0,0.00011964,2]
[394566204,1763717444631,-500.0,0.00011964,2]
[394566205,1763717444640,-464.77588177,0.00011964,2]
[394566206,1763717444653,-35.22411823,0.00011964,2]
[394566207,1763717444665,-500.0,0.00011964,2]
[394566208,1763717444675,-500.0,0.00011964,2]
[394566209,1763717444684,-500.0,0.00011964,2]
[394566210,1763717444695,-505.82206302,0.00011964,2]
[394566211,1763717444705,-500.0,0.00011964,2]
[394566212,1763717444714,-500.0,0.00011964,2]
[394566213,1763717444723,-500.0,0.00011964,2]
[394566214,1763717444738,-500.0,0.00011964,2]
[394566215,1763717444748,-500.0,0.00011964,2]
[394566216,1763717444757,-149.03480386,0.00011964,2]
[394566253,1763718266728,-300.0,0.000145,9]
[394566258,1763718323087,-223.02823501,8.337e-05,2]
[394566259,1763718323120,-223.02823501,8.421e-05,2]
[394566261,1763718323154,-223.02823501,8.506e-05,2]
[394566262,1763718323186,-182.49156422,8.507e-05,2]
[394566263,1763718323217,-216.90114349,8.507e-05,2]
[394566264,1763718323250,-2850.3546005,8.781e-05,2]
[394566265,1763718323283,-162.69974683,9.41e-05,2]
[394566266,1763718323319,-306.969571,0.00010039,2]
[394566267,1763718323350,-2850.3546005,0.00010128,2]
[394566268,1763718323383,-500.0,0.00011273,2]
[394566269,1763718323417,-322.28813686,0.00011293,2]
[394566270,1763718323442,-223.02823501,0.00011293,2]
[394566271,1763718323461,-223.02823501,0.00011293,2]
[394566272,1763718323472,-223.02823501,0.00011293,2]
[394566273,1763718323487,-182.49156422,0.00011293,2]
[394566274,1763718323502,-26.13559389,0.00011293,2]
[394566275,1763718323512,-190.7655496,0.00011294,2]
[394566276,1763718323523,-309.2344504,0.00011294,2]
[394566277,1763718323533,-500.0,0.00011294,2]
[394566278,1763718323542,-500.0,0.00011294,2]
[394566279,1763718323553,-500.0,0.00011294,2]
[394566280,1763718323564,-500.0,0.00011294,2]
[394566281,1763718323574,-500.0,0.00011294,2]
[394566282,1763718323584,-41.1201501,0.00011294,2]
[394566283,1763718323603,-162.69974683,0.00011294,2]
[394566284,1763718323615,-296.18010307,0.00011294,2]
[394566285,1763718323627,-10.78946793,0.00011294,2]
[394566286,1763718323645,-489.21053207,0.00011294,2]
[394566287,1763718323655,-500.0,0.00011294,2]
[394566288,1763718323666,-500.0,0.00011294,2]
[394566289,1763718323676,-498.55585431,0.00011294,2]
[394566290,1763718323686,-500.0,0.00011294,2]
[394566291,1763718323695,-362.58821412,0.00011294,2]
[394566292,1763718323717,-137.41178588,0.00011294,2]
[394566293,1763718323729,-362.58821412,0.00011294,2]
[394566294,1763718323746,-137.41178588,0.00011294,2]
[394566295,1763718323756,-500.0,0.00011294,2]
[394566296,1763718323767,-500.0,0.00011294,2]
[394566297,1763718323778,-62.58821412,0.00011294,2]
[394566301,1763718346480,-3572.9072196,0.00010832,2]
[394566302,1763718346508,-305.90939274,0.00011069,2]
[394566303,1763718346536,-305.90939274,0.00011181,2]
[394566304,1763718346561,-3572.9072196,0.00011294,2]
[394566305,1763718346577,-305.90939274,0.00011294,2]
[394566306,1763718346588,-305.90939274,0.00011294,2]
[394566307,1763718346599,-630.54798984,0.00011294,2]
[394566310,1763718390024,220.0,0.000151,29]
[394566311,1763718411113,-223.02823501,0.00011179,2]
[394566312,1763718426101,-2.11584043,0.00011179,2]
[394566313,1763718426123,-300.0,0.00011191,2]
[394566314,1763718426143,-3357.25711746,0.00011192,2]
[394566316,1763718448088,-781.16279214,0.00011192,2]
[394566374,1763718634121,-320.83338335,8e-05,2]
[394566375,1763718634130,-202.79349464,0.00010039,2]
[394566382,1763718638277,-99.93666436,0.00010039,2]
[394566383,1763718638287,-169.94636206,0.00010769,2]
[394566384,1763718638298,-187.75787101,0.00010859,2]
[394566385,1763718638307,-169.94636206,0.00010932,2]
[394566386,1763718638317,-185.25413399,0.00010969,2]
[394566464,1763718646339,-2.50373702,0.00010969,2]
[394566465,1763718646348,-300.0,0.00011079,2]
[394566466,1763718646358,-500.0,0.00011079,2]
[394566467,1763718646367,-500.0,0.00011079,2]
[394566468,1763718646376,-500.0,0.00011079,2]
[394566469,1763718646385,-500.0,0.00011079,2]
[394566470,1763718646395,-500.0,0.00011079,2]
[394566471,1763718646404,-500.0,0.00011079,2]
[394566472,1763718646413,-500.0,0.00011079,2]
[394566473,1763718646422,-500.0,0.00011079,2]
[394566474,1763718646431,-500.0,0.00011079,2]
[394566475,1763718646440,-500.0,0.00011079,2]
[394566476,1763718646449,-500.0,0.00011079,2]
[394566478,1763718646460,-500.0,0.00011079,2]
[394566479,1763718646470,-635.00000008,0.00011079,2]
[394566480,1763718646479,-500.0,0.00011079,2]
[394566481,1763718646488,-500.0,0.00011079,2]
[394566482,1763718646498,-500.0,0.00011079,2]
[394566483,1763718646507,-500.0,0.00011079,2]
[394566484,1763718646517,-500.0,0.00011079,2]
[394566485,1763718646526,-500.0,0.00011079,2]
[394566486,1763718646535,-500.0,0.00011079,2]
[394566487,1763718646545,-500.0,0.00011079,2]
[394566488,1763718646555,-338.32777762,0.00011079,2]
[394566489,1763718646564,-500.0,0.00011079,2]
[394566490,1763718646573,-500.0,0.00011079,2]
[394566491,1763718646582,-500.0,0.00011079,2]
[394566492,1763718646591,-500.0,0.00011079,2]
[394566493,1763718646601,-500.0,0.00011079,2]
[394566494,1763718646610,-500.0,0.00011079,2]
[394566495,1763718646619,-500.0,0.00011079,2]
[394566496,1763718646628,-267.08726444,0.00011079,2]
[394566497,1763718646638,-500.0,0.00011079,2]
[394566498,1763718646647,-500.0,0.00011079,2]
[394566499,1763718646656,-500.0,0.00011079,2]
[394566500,1763718646665,-500.0,0.00011079,2]
[394566501,1763718646674,-500.0,0.00011079,2]
[394566502,1763718646684,-500.0,0.00011079,2]
[394566503,1763718646693,-202.86784698,0.00011079,2]
[394566504,1763718646725,-0.49134666,0.00011079,2]
[394566505,1763718646743,-296.64080636,0.00011079,2]
[394566506,1763718646762,-921.17869549,0.00011079,2]
[394566507,1763718646772,-500.0,0.00011079,2]
[394566508,1763718646782,-315.36975307,0.00011079,2]
[394566509,1763718646792,-666.81074507,0.00011079,2]
[394566510,1763718646803,-254.36795042,0.00011079,2]
[394566511,1763718646812,-83.96936808,0.00011079,2]
[394566516,1763718646883,-416.03063192,0.00011079,2]
[394566518,1763718646893,-500.0,0.00011079,2]
[394566519,1763718646903,-500.0,0.00011079,2]
[394566520,1763718646913,-921.17869549,0.00011079,2]
[394566521,1763718646923,-500.0,0.00011079,2]
[394566522,1763718646933,-921.17869549,0.00011079,2]
[394566523,1763718646942,-500.0,0.00011079,2]
[394566524,1763718646952,-500.0,0.00011079,2]
[394566525,1763718646962,-500.0,0.00011079,2]
[394566526,1763718646972,-921.17869549,0.00011079,2]
[394566527,1763718646981,-500.0,0.00011079,2]
[394566528,1763718646991,-500.0,0.00011079,2]
[394566529,1763718647000,-921.17869549,0.00011079,2]
[394566530,1763718647013,-500.0,0.00011079,2]
[394566531,1763718647023,-921.17869549,0.00011079,2]
[394566532,1763718647033,-500.0,0.00011079,2]
[394566533,1763718647043,-874.00587862,0.00011079,2]
[394566534,1763718647568,-18.25015429,0.00011079,2]
[394566582,1763719163890,2163.85,0.00025279,120]
[394566586,1763719234199,5000.0,0.0001,3]
[394566587,1763719256536,5000.0,0.0001,3]
[394566589,1763719332120,-246.51846243,8.422e-05,2]
[394566590,1763719332147,-186.6422138,8.465e-05,2]
[394566591,1763719410765,-440.34166943,0.00012631,7]
[394566592,1763719410795,-19.65833057,0.00012672,7]
[394566611,1763719641106,-206.62175082,8.281e-05,2]
[394566612,1763719641126,-206.62175082,8.364e-05,2]
[394566613,1763719641147,-194.92488004,8.414e-05,2]
[394566614,1763719641168,-246.51846243,8.507e-05,2]
[394566615,1763719641190,-292.639154,0.00010039,2]
[394566616,1763719641212,-308.10199172,0.00010334,2]
[394566617,1763719641234,-349.53178907,0.0001036,2]
[394566618,1763719641257,-230.01135845,0.00010414,2]
[394566619,1763719641281,-300.0,0.00010669,2]
[394566620,1763719641305,-2302.93907318,0.0001067,2]
[394566621,1763719644114,-520.93871409,0.0001067,2]
[394566658,1763719833095,-2453.29089707,0.00010462,2]
[394566659,1763719833104,-6273.38302066,0.00010462,2]
[394566660,1763719833114,-5504.22480959,0.00010562,2]
[394566661,1763719833123,-500.0,0.00010568,2]
[394566662,1763719833132,-500.0,0.00010568,2]
[394566663,1763719833142,-500.0,0.00010568,2]
[394566664,1763719833151,-500.0,0.00010568,2]
[394566665,1763719833160,-500.0,0.00010568,2]
[394566666,1763719833169,-500.0,0.00010568,2]
[394566667,1763719833179,-628.18861452,0.00010568,2]
[394566668,1763719833191,-500.0,0.00010568,2]
[394566669,1763719833200,-500.0,0.00010568,2]
[394566670,1763719833210,-500.0,0.00010568,2]
[394566671,1763719833219,-500.0,0.00010568,2]
[394566672,1763719833228,-500.0,0.00010568,2]
[394566673,1763719833238,-500.0,0.00010568,2]
[394566674,1763719833248,-500.0,0.00010568,2]
[394566675,1763719833257,-500.0,0.00010568,2]
[394566676,1763719833267,-500.0,0.00010568,2]
[394566677,1763719833276,-500.0,0.00010568,2]
[394566678,1763719833286,-500.0,0.00010568,2]
[394566679,1763719833296,-500.0,0.00010568,2]
[394566680,1763719833305,-500.0,0.00010568,2]
[394566681,1763719833314,-500.0,0.00010568,2]
[394566682,1763719833324,-500.0,0.00010568,2]
[394566683,1763719833333,-500.0,0.00010568,2]
[394566684,1763719833342,-183.91675348,0.00010568,2]
[394566685,1763719833351,-500.0,0.00010568,2]
[394566686,1763719833361,-500.0,0.00010568,2]
[394566687,1763719833370,-500.0,0.00010568,2]
[394566688,1763719833379,-500.0,0.00010568,2]
[394566689,1763719833389,-500.0,0.00010568,2]
[394566690,1763719833403,-500.0,0.00010568,2]
[394566691,1763719833413,-500.0,0.00010568,2]
[394566692,1763719833423,-500.0,0.00010568,2]
[394566693,1763719833433,-500.0,0.00010568,2]
[394566694,1763719833447,-500.0,0.00010568,2]
[394566695,1763719833468,-500.0,0.00010568,2]
[394566696,1763719833478,-500.0,0.00010568,2]
[394566697,1763719833488,-644.93447769,0.00010568,2]
[394566698,1763719833497,-500.0,0.00010568,2]
[394566699,1763719833506,-500.0,0.00010568,2]
[394566700,1763719833516,-500.0,0.00010568,2]
[394566701,1763719833526,-500.0,0.00010568,2]
[394566702,1763719833535,-500.0,0.00010568,2]
[394566703,1763719833545,-500.0,0.00010568,2]
[394566704,1763719833554,-500.0,0.00010568,2]
[394566705,1763719833564,-500.0,0.00010568,2]
[394566706,1763719833574,-500.0,0.00010568,2]
[394566707,1763719833583,-500.0,0.00010568,2]
[394566708,1763719833592,-500.0,0.00010568,2]
[394566709,1763719833601,-500.0,0.00010568,2]
[394566710,1763719833611,-500.0,0.00010568,2]
[394566711,1763719833619,-500.0,0.00010568,2]
[394566712,1763719833628,-500.0,0.00010568,2]
[394566713,1763719833638,-500.0,0.00010568,2]
[394566714,1763719833647,-500.0,0.00010568,2]
[394566715,1763719833656,-500.0,0.00010568,2]
[394566716,1763719833665,-500.0,0.00010568,2]
[394566717,1763719833674,-500.0,0.00010568,2]
[394566718,1763719833683,-500.0,0.00010568,2]
[394566719,1763719833699,-500.0,0.00010568,2]
[394566720,1763719833708,-500.0,0.00010568,2]
[394566721,1763719833717,-500.0,0.00010568,2]
[394566722,1763719833726,-500.0,0.00010568,2]
[394566723,1763719833735,-500.0,0.00010568,2]
[394566724,1763719833744,-500.0,0.00010568,2]
[394566725,1763719833753,-500.0,0.00010568,2]
[394566726,1763719833763,-500.0,0.00010568,2]
[394566727,1763719833772,-500.0,0.00010568,2]
[394566728,1763719833782,-500.0,0.00010568,2]
[394566729,1763719833791,-500.0,0.00010568,2]
[394566730,1763719833801,-500.0,0.00010568,2]
[394566731,1763719833811,-500.0,0.00010568,2]
[394566732,1763719833821,-500.0,0.00010568,2]
[394566733,1763719833830,-500.0,0.00010568,2]
[394566734,1763719833840,-500.0,0.00010568,2]
[394566735,1763719833850,-500.0,0.00010568,2]
[394566736,1763719833860,-500.0,0.00010568,2]
[394566737,1763719833871,-500.0,0.00010568,2]
[394566738,1763719833879,-500.0,0.00010568,2]
[394566739,1763719833888,-500.0,0.00010568,2]
[394566740,1763719833897,-500.0,0.00010568,2]
[394566741,1763719833907,-500.0,0.00010568,2]
[394566742,1763719833916,-500.0,0.00010568,2]
[394566743,1763719833927,-500.0,0.00010568,2]
[394566744,1763719833939,-500.0,0.00010568,2]
[394566745,1763719833949,-500.0,0.00010568,2]
[394566746,1763719833958,-500.0,0.00010568,2]
[394566747,1763719833967,-1098.14317041,0.00010568,2]
[394566748,1763719833976,-500.0,0.00010568,2]
[394566749,1763719833985,-1098.14317041,0.00010568,2]
[394566750,1763719833995,-1098.14317041,0.00010568,2]
[394566751,1763719834005,-500.0,0.00010568,2]
[394566752,1763719834014,-1098.14317041,0.00010568,2]
[394566753,1763719834023,-500.0,0.00010568,2]
[394566754,1763719834032,-1098.14317041,0.00010568,2]
[394566755,1763719834042,-1098.14317041,0.00010568,2]
[394566756,1763719834051,-1098.14317041,0.00010568,2]
[394566757,1763719834060,-500.0,0.00010568,2]
[394566758,1763719834071,-1098.14317041,0.00010568,2]
[394566759,1763719834080,-200.0,0.00010568,2]
[394566760,1763719834089,-1098.14317041,0.00010568,2]
[394566761,1763719834099,-1098.14317041,0.00010568,2]
[394566762,1763719834108,-1098.14317041,0.00010568,2]
[394566763,1763719834117,-1098.14317041,0.00010568,2]
[394566764,1763719834127,-1098.14317041,0.00010568,2]
[394566765,1763719834136,-1098.14317041,0.00010568,2]
[394566766,1763719834146,-1098.14317041,0.00010568,2]
[394566767,1763719834156,-1098.14317041,0.00010568,2]
[394566768,1763719834165,-1098.14317041,0.00010568,2]
[394566769,1763719834175,-1098.14317041,0.00010568,2]
[394566770,1763719834184,-1098.14317041,0.00010568,2]
[394566771,1763719834199,-1098.14317041,0.00010568,2]
[394566772,1763719834208,-1098.14317041,0.00010568,2]
[394566773,1763719834219,-1098.14317041,0.00010568,2]